Cogmind - Beta 14 @@@ ROGUE MODE // 2024.08.20 @ 17:48:45 Player: T1-M4T Result: Destroyed by R8-XKA(R) with Subdweller Beam Cannon Performance ------------- Evolutions (0) 0 Regions Visited (2) 400 Robots Destroyed (20) 100 Value Destroyed (653) 653 Prototype IDs (0) 0 Alien Tech Used (0) 0 Bonus (0) 0 TOTAL SCORE: 1153 Bonus ------- None Cogmind --------- Core Integrity 0/250 Matter 270/300 Energy 192/200 System Corruption 0% Temperature Cool (15) Movement Treading (160) Location -10/Subcaves Parts ------- > --- POWER (1) -------- Subdweller Power Source > --- PROPULSION (2) --- Spiked Treads Subdweller Monowheel > --- UTILITY (2) ------ Small Storage Unit Light Armor Plating > --- WEAPON (2) ------- Beam Cannon Battle Rifle > --- INVENTORY (8) ---- Compact Wheel Subdweller Monowheel Disposable Heat Sink Sensor Array Makeshift Light Armor Plating Light Assault Rifle Piercing Trap Peak State ------------ > --- POWER ------------ Light Nuclear Core > --- PROPULSION ------- Spiked Treads Subdweller Monowheel > --- UTILITY ---------- Small Storage Unit Light Armor Plating > --- WEAPON ----------- Battle Rifle Subdweller Machine Gun > --- INVENTORY -------- Compact Wheel Disposable Heat Sink Sensor Array Makeshift Light Armor Plating Beam Cannon Light Assault Rifle [Rating: 14] Favorites ----------- Power Ion Engine Engine Ion Engine Power Core Light Nuclear Core Propulsion Light Treads Treads Light Treads Wheel Subdweller Monowheel Utility Small Storage Unit Device Sensor Array Storage Small Storage Unit Protection Light Armor Plating Weapon Assault Rifle Energy Gun Medium Laser Energy Cannon Beam Cannon Ballistic Gun Assault Rifle Build | -11 -10 -10 ------- Run | Yrd Mat Sub Slots Evolved . | . . . Power . | . . . Propulsion . | . . . Utility . | . . . Weapon . | . . . Parts Attached 25 | 6 5 14 Power 5 | 1 1 3 Engine 4 | 1 1 2 Core 1 | . . 1 Reactor . | . . . Propulsion 6 | 2 . 4 Treads 3 | 2 . 1 Leg . | . . . Wheel 3 | . . 3 Hover . | . . . Flight . | . . . Utility 5 | 1 3 1 Device 1 | . 1 . Storage 1 | 1 . . Processor . | . . . Hackware . | . . . Protection 3 | . 2 1 Artifact . | . . . Weapon 9 | 2 1 6 Energy Gun 2 | . 1 1 Energy Cannon 2 | . . 2 Ballistic Gun 5 | 2 . 3 Ballistic Cannon . | . . . Launcher . | . . . Special Weapon . | . . . Impact Weapon . | . . . Slashing Weapon . | . . . Piercing Weapon . | . . . Special Melee Weapon . | . . . Unidentified Prototypes . | . . . Parts Lost 9 | . 1 8 Power 2 | . . 2 Propulsion 3 | . . 3 Utility 2 | . 1 1 Weapon 2 | . . 2 Highest Loss Streak 6 | . 1 6 To Critical Strikes . | . . . Average Slot Usage (%) 98 | . 99 97 Engine 10 | . 14 7 Core 2 | . . 4 Treads 19 | . 28 13 Wheel 8 | . . 14 Device 1 | . 4 . Storage 14 | . 14 14 Protection 12 | . 9 14 Energy Gun 4 | . 6 2 Energy Cannon 3 | . . 5 Ballistic Gun 20 | . 21 19 Peak Build Rating 14 | 6 8 14 Average Rating 9 | 4 7 11 On Entrance 4 | . 6 8 Naked Turns . | . . . Heaviest Build 20 | 13 17 20 Greatest Support 40 | 40 40 40 Greatest Overweight (x) 1 | . . 1 Average Overweight (x) . | . . . Largest Inventory Capacity 8 | 8 8 8 Average Capacity 7 | 7 8 8 Most Carried 8 | 4 8 8 Average Carried 6 | 2 6 6 Final Capacity 8 | 8 8 8 Final Carried 8 | 4 8 7 Class Distribution -------------------- 100% | Mutant Dominant Class ---------------- Mutant | -10/Materials Mutant | -10/Subcaves Resources | -11 -10 -10 ----------- Run | Yrd Mat Sub Matter Collected 608 | 223 219 166 Remotely . | . . . Salvage Created 753 | . 478 275 Parts 41 | . 26 15 Haulers Intercepted . | . . . Recyclers Shooed . | . . . Parts Field Recycled . | . . . Retrieved Matter . | . . . Parts Self-Destructed 12 | . . 12 Prevented . | . . . Kills | -11 -10 -10 ------- Run | Yrd Mat Sub Combat Hostiles Destroyed 19 | . 13 6 Guns 18 | . 13 5 Cannons 1 | . . 1 Classes Destroyed 4 | . 3 1 Watcher 1 | . 1 . Swarmer 3 | . 3 . Grunt 12 | . 10 2 Subdweller 4 | . . 4 Best Kill Streak 4 | . 4 2 Combat Bots Only 3 | . 3 2 Max Kills in Single Turn 2 | . 2 1 Gunslinging 1 | . 1 . Exploded . | . . . Melee . | . . . Uniques/NPCs Destroyed . | . . . Combat | -11 -10 -10 -------- Run | Yrd Mat Sub Hostile Shots Fired 136 | . 69 67 Missed 40 | . 19 21 Damage Taken 1476 | . 556 920 Core 272 | . 73 199 Absorbed by Shields . | . . . Core Remaining (%) 100 | 100 . . Volleys Fired 83 | . 44 39 Largest 2 | . 2 2 Hottest 85 | . 70 85 Shots Fired 158 | . 88 70 Gun 151 | . 88 63 Cannon 7 | . . 7 Launcher . | . . . Special . | . . . Kinetic 95 | . 54 41 Thermal 63 | . 34 29 Explosive . | . . . Electromagnetic . | . . . Robot Hit Streak 29 | . 8 29 Robot Miss Streak 6 | . 6 3 Penetration Max . | . . . Secondary Targets 3 | . 2 1 Max Gunslinging Chain 1 | . 1 1 Shots Hit Robots 109 | . 56 53 Core Hits 39 | . 24 15 Critical Kills 1 | . 1 . Critical Parts Destroyed 1 | . . 1 Critical Strikes 10 | . 7 3 Burn 8 | . 6 2 Destroy 2 | . 1 1 Melee Attacks . | . . . Impact . | . . . Slashing . | . . . Piercing . | . . . Sneak Attacks . | . . . Combat Hostiles . | . . . Follow-up Attacks . | . . . Damage Inflicted 1455 | . 698 757 Guns 1345 | . 692 653 Cannons 104 | . . 104 Explosions . | . . . Melee . | . . . Ramming 6 | . 6 . Kinetic 819 | . 419 400 Thermal 630 | . 273 357 Explosive . | . . . Electromagnetic . | . . . Impact . | . . . Slashing . | . . . Piercing . | . . . Highest Corruption . | . . . Average Corruption . | . . . Corruption Purged . | . . . Corruption Blocked . | . . . Overload Shots . | . . . Overflow Damage . | . . . Projectiles . | . . . Explosions . | . . . Melee . | . . . Knockbacks . | . . . Impact . | . . . Kinetic . | . . . Secondary . | . . . Self-Inflicted Damage . | . . . Shots . | . . . Rammed 1 | . 1 . Targets Rammed 1 | . 1 . Kicked . | . . . Crushed . | . . . Highest Temperature 294 | . 211 294 Average Temperature 75 | . 77 65 Received Heat Transfer 813 | . 258 555 Siege Activations . | . . . Robots Corrupted . | . . . Combat Hostiles . | . . . Parts Fried . | . . . Impact Corruptions . | . . . Robots Melted . | . . . Combat Hostiles . | . . . Parts Melted 5 | . 2 3 Heat Transferred 2294 | . 1258 1036 Parts Sabotaged . | . . . Parts Stolen . | . . . Parts Stripped . | . . . Power Chain Reactions . | . . . Alert | -11 -10 -10 ------- Run | Yrd Mat Sub Peak Influence 264 | . 264 . Initial . | . . . Average 79 | . 88 . Maximum Alert Level 1 | . 1 . Low Security (%) 83 | 100 80 . Level 1 16 | . 19 . Level 2 . | . . . Level 3 . | . . . Level 4 . | . . . Level 5 . | . . . High Security . | . . . Max Security . | . . . Squads Dispatched 3 | . 3 . Investigation 2 | . 2 . Extermination . | . . . Reinforcement 1 | . 1 . Assault . | . . . Garrison . | . . . Intercept . | . . . Searches Triggered . | . . . Construction Impeded . | . . . Haulers Reinforced . | . . . Active Scanning Responses . | . . . Cargo Convoy Interrupts . | . . . Stealth | -11 -10 -10 --------- Run | Yrd Mat Sub Distress Signals . | . . . Communications Jammed . | . . . Distress Signals . | . . . Times Spotted 30 | . 21 9 Peak Tracking Total 7 | . 7 4 Tactical Retreats 3 | . 3 . Traps | -11 -10 -10 ------- Run | Yrd Mat Sub Traps Triggered 2 | . 2 . Indirectly . | . . . Trap Hack Attempts . | . . . Triggered . | . . . Disarmed . | . . . Reprogrammed . | . . . Reused . | . . . Traps Extracted . | . . . Installed . | . . . Triggered . | . . . Most Traps Carried 1 | . . 1 Machines | -11 -10 -10 ---------- Run | Yrd Mat Sub Machines Disabled . | . . . Max in Single Turn . | . . . Machines Repaired . | . . . Machines Dismantled . | . . . Machines Sabotaged . | . . . Overloaded Fab Kills . | . . . Hacking | -11 -10 -10 --------- Run | Yrd Mat Sub Machines Accessed 4 | . 4 . Terminals 4 | . 4 . Fabricators . | . . . Repair Stations . | . . . Recycling Units . | . . . Scanalyzers . | . . . Garrison Access . | . . . Total Hacks 7 | . 7 . Successful 3 | . 3 . Failed 4 | . 4 . Catastrophic . | . . . Database Lockouts . | . . . Manual 5 | . 5 . Terminals 7 | . 7 . Fabricators . | . . . Repair Stations . | . . . Recycling Units . | . . . Scanalyzers . | . . . Garrison Access . | . . . Terminal Hacks 1 | . 1 . Robot Analysis 1 | . 1 . Fabricator Hacks . | . . . Repair Station Hacks . | . . . Recycling Unit Hacks . | . . . Scanalyzer . | . . . Garrison Access Hacks . | . . . Unauthorized Hacks 2 | . 2 . Terminals 2 | . 2 . Botnet 2 | . 2 . Fabricators . | . . . Repair Stations . | . . . Recycling Units . | . . . Scanalyzers . | . . . Garrison Access . | . . . Data Cores Recovered . | . . . Used . | . . . Hacking Detections 4 | . 4 . Full Trace Events . | . . . Feedback Events . | . . . Feedback Blocked . | . . . Robot Schematics Acquired . | . . . Robots Built . | . . . Authchips . | . . . Time . | . . . Total Robot Build Rating . | . . . Part Schematics Acquired . | . . . Parts Built . | . . . Authchips . | . . . Time . | . . . Total Part Build Rating . | . . . Parts Repaired . | . . . Time . | . . . Parts Recycled . | . . . Recycled Matter . | . . . Retrieved Matter . | . . . Retrieved Components . | . . . Parts Scanalyzed . | . . . Part Schematics Acquired . | . . . Parts Damaged . | . . . Bothacking | -11 -10 -10 ------------ Run | Yrd Mat Sub Used RIF Installer . | . . . Robots Hacked . | . . . Non-combat . | . . . Combat . | . . . Robot Hacks Applied . | . . . Relay Couplers Released . | . . . Fabnet Peak Effective % . | . . . Robots Rewired . | . . . Allies Hacked . | . . . Hacks Repelled . | . . . Allies | -11 -10 -10 -------- Run | Yrd Mat Sub Total Allies . | . . . Largest Group . | . . . Highest-Rated Group . | . . . Highest-Rated Ally . | . . . Total Orders . | . . . Ally Attacks . | . . . Total Damage . | . . . Kills . | . . . Allies Corrupted . | . . . Allies Melted . | . . . Intel | -11 -10 -10 ------- Run | Yrd Mat Sub Robot Analysis Total 1 | . 1 . Derelict Logs Recovered 1 | . . 1 Drone Launches . | . . . Drone Recoveries . | . . . Exploration | -11 -10 -10 ------------- Run | Yrd Mat Sub Turns Passed 1904 | 88 730 1086 Spaces Moved 1029 | 49 327 653 Core 3 | 3 . . Treads 840 | 46 327 467 Legs . | . . . Wheels 186 | . . 186 Hover . | . . . Flight . | . . . Fastest Speed 50 | 50 160 95 Average Speed 150 | 153 160 145 Slowest Speed 160 | 160 160 160 Overloaded Moves . | . . . Propulsion Burnouts . | . . . Robots Hopped . | . . . Cave-ins Triggered . | . . . Exploration Rate (%) 35 | 4 63 39 Regions Visited 2 Branch Regions 1 Pre-discovered Areas . | . . . Known Exits Taken . | . . . Unknown Exits Taken 2 | 1 1 . Scrap Searched . | . . . Spaces Dug . | . . . Terrain Destroyed . | . . . Melee . | . . . Projectile . | . . . AOE . | . . . Terrain Rammed . | . . . Walls Destroyed . | . . . Machines Disabled . | . . . Actions | -11 -10 -10 --------- Run | Yrd Mat Sub Total 1232 | 60 448 724 Wait 68 | 1 61 6 Move 1027 | 48 326 653 Hop . | . . . Pick Up 19 | 5 7 7 Fast Attach 11 | 5 2 4 Attach 10 | 1 1 8 Detach 1 | . . 1 Swap 4 | . 2 2 Drop 8 | . 4 4 Fire 83 | . 44 39 Melee . | . . . Ram . | . . . Kick . | . . . Crush 1 | . 1 . Escape Stasis . | . . . Rewire . | . . . Trap . | . . . Miscellaneous . | . . . Route ------- -11/Scrapyard -10/Materials (discovered 3 exits: [*Mat] / [*Min] / [*Sub]) -10/Subcaves History --------- Turn | Location | Event 31 | -11/Scrapyard | Discovered new exit (range 16) 89 | -11/Scrapyard | Entered Materials 318 | -10/Materials | Build established: Mutant 423 | -10/Materials | Discovered new exit (range 12) 578 | -10/Materials | Discovered new exit (range 7) 810 | -10/Materials | Discovered new exit (range 7) 819 | -10/Materials | Entered Subcaves 847 | -10/Subcaves | Shifting Twisted Machinery released Mak. Light Armor Plating 1003 | -10/Subcaves | Ambushed by Subdwellers from Twisted Machinery 1020 | -10/Subcaves | Core integrity fell below 50% 1071 | -10/Subcaves | Lost 6 parts (1p2n1u2w) 1189 | -10/Subcaves | Shifting Twisted Machinery released Battle Rifle 1190 | -10/Subcaves | Shifting Twisted Machinery released Piercing Trap 1239 | -10/Subcaves | Learned Materials stockpile data 1716 | -10/Subcaves | Shifting Twisted Machinery released Piercing Trap 1875 | -10/Subcaves | Core integrity fell below 20% 1905 | -10/Subcaves | Destroyed by R8-XKA(R) with Subdweller Beam Cannon Last Messages --------------- 01400_ Acquired 15 matter. 01405_ Acquired Sub. Monowheel. 01507_ Subatomizers dissect the Sub. Optics, destroying it. 01521_ Subatomizers dissect the Sub. Power Source. 01524_ Acquired Sub. Power Source. 01526_ Acquired 10 matter. 01608_ Acquired 4 matter. 01645_ Sub. Machine Gun shoots sparks and powers down. 01647_ Dropped Broken Sub. Machine Gun. 01654_ Subatomizers dissect the Broken Sub. Machine Gun. Piercing Trap falls loose from the Twisted Machinery. 01719_ Acquired Piercing Trap. 01825_ KJ-5MY(u) deconstructs Twisted Machinery. 01893_ YZ-CP2(R) destroyed. Map ----- +----------------------------------------------------+ | ??????????????????????????????# #"""" "" | | ??????????????????????????????# #""""" "" | | ?????????????????????????????## # ## "[#??? | | ?????????????????????????????# ##### ##??? | | ?????????????????????????????## #??## #???? | | ??????????????????????????????# ##???# ##???? | | ??????????????????????????????# ##?### ####?? | | ??????????????????????????????# ### #" ##? | | ???????????????????????#?????## ## """""" #? | | ???????????????# #???## ???## #### """##? | | ??????????????# ??## ???# ##??# """##?? | | ??????????????# ?## ??# #???# " #??# | | ???????????##?# ?# ### #???## #??# | | ?????????#?? ## ?# ######### #?## | | ?????????# ?? #?# #### ###?# | | ????????## ?? #?# ## ##???# | | ???????## ?? ## #???## | | ??????## ??# #???# | | ??## ## ?# ## ##???# | | ?? ## ## ## ##????## | | ???# #??## #??????# | | ???? R ##??#### ## ##?????# | | ???????# #######; ;;;# ###???# | | ?????????# R ; ;; # ### ##### | | ?????????# ! ; # ####?## | | ?????????# " *%! @ ; #####?### | | ?????????# ## # ; #?# ## | | ?????????# ########### ;;##?? | | ?????????## ????????## ###?# # | | ??????????## ????????# ##??# ## # | | ???????????# #????????## ##?###### ###### | | ???????????# %??????????### ##????## ####### | | ??????????? ????????????## ###### ## | | ??????????## %?????????????## | | ???????????# ???????????????## | | ???????????# ????????????????## ### # | | ??????????? ?????????????????## #####?### ## | | ???????????" ??????????????????## #???????# ### | | ???????????"????????????????????# #####???## ##?# | | ????????????????????????????????## ##??#####?# | | ????????????????????????????###??## #?# ##? | | ????????????????????????????# ### ## #? | | ????????????????????????????# #? | | ????????????????????????????# #? | | ????????????????????????????# # # | | ????????????????????????????#??##### ### ### | | ??????????????????????????????????# # #???###?? | | ??????????????????????????????? #???????? | | ?????????????????????????? ??????? | | ?????????????????????????# # # # ?????? | +----------------------------------------------------+ Best States ------------- Heat Dissipation 25 Energy Generation 14 Energy Capacity 250 Matter Stores 300 Matter Capacity 300 Sight Range 16 Robot Scan Range 14 Terrain Scan Density 10 Armor Coverage 150 Evasion (%) 41 Recoil Reduction 2 Item Schematics ----------------- None Robot Schematics ------------------ None Fabricated ------------ Nothing Alien Tech Used ----------------- None Achievements -------------- None Challenges ------------ None Game ------ Seed NovaSeismicWings Manual? 0 Play Time 00:17:49 Cumulative 80.8 hours Start 2024.08.20 @ 16:38:34 End 2024.08.20 @ 17:48:45 Sessions 3 Manual Loads 0 Difficulty Rogue Special Mode None Game No. 23 Rogue 23 Adventurer 0 Explorer 0 Win Type - Total 4 Types 4/0/0/0/0/0/0/0/0 Lore% 40 Gallery% 47 Achievement% 43 Wizard Run 0 Options --------- Layout 1 ASCII 0 Keyboard 0 Movement Numpad Keybinds 0 Fullscreen 1 Font 32/SmallcapsGlow Map View 50x35 Zoom Use 0% Tactical HUD 1 Map Filters NONE Filters NONE Steam 1 RUN: b26e3177-6422-4e85-acbb-7a775b68fd36